fUSD/lending_fUSD_20240329
["ID","MTS","AMOUNT","RATE_DAILY","PERIOD"]
[320970768,1711725052206,-500.0,0.00049589,120]
[320970769,1711725052214,-500.0,0.00049589,120]
[320970770,1711725052221,-500.0,0.00049589,120]
[320970771,1711725052228,-208.56,0.00049589,120]
[320970772,1711725052235,-500.0,0.00049589,120]
[320970773,1711725052241,-1369.55,0.00049589,120]
[320970774,1711725052248,-500.0,0.00049589,120]
[320970775,1711725052254,-686.24,0.00049589,120]
[320970776,1711725052260,-656.0,0.00049589,120]
[320970777,1711725052267,-500.0,0.00049589,120]
[320970778,1711725052275,-500.0,0.00049589,120]
[320970779,1711725052283,-500.0,0.00049589,120]
[320970780,1711725052290,-1965.79,0.00049589,120]
[320970781,1711725052303,-500.0,0.00049589,120]
[320970782,1711725052312,-1009.79,0.00049589,120]
[320970783,1711725052321,-500.0,0.00049589,120]
[320970784,1711725052329,-500.0,0.00049589,120]
[320970785,1711725052338,-1502.83,0.00049589,120]
[320970786,1711725052348,-716.55,0.00049589,120]
[320970787,1711725052357,-951.9,0.00049589,120]
[320970788,1711725052367,-597.99829506,0.00049589,120]
[320970789,1711725052377,-500.0,0.00049589,120]
[320970790,1711725052387,-579.39,0.00049589,120]
[320970791,1711725052397,-500.0,0.00049589,120]
[320970792,1711725052408,-588.56,0.00049589,120]
[320970793,1711725052419,-500.0,0.00049589,120]
[320970794,1711725052430,-1875.29,0.00049589,120]
[320970795,1711725052439,-1392.05,0.00049589,120]
[320970796,1711725052449,-2456.85,0.00049589,120]
[320970797,1711725052459,-500.0,0.00049589,120]
[320970798,1711725052470,-500.0,0.00049589,120]
[320970799,1711725052481,-508.61,0.00049589,120]
[320970800,1711725052491,-500.0,0.00049589,120]
[320970801,1711725052501,-676.92,0.00049589,120]
[320970802,1711725052511,-1162.06,0.00049589,120]
[320970803,1711725052521,-500.0,0.00049589,120]
[320970804,1711725052533,-500.0,0.00049589,7]
[320970805,1711725052543,-500.0,0.00049589,120]
[320970806,1711725052554,-530.42,0.00049589,120]
[320970807,1711725052564,-909.52,0.00049589,120]
[320970808,1711725052575,-2245.64,0.00049589,120]
[320970809,1711725052586,-500.0,0.00049589,120]
[320970810,1711725052596,-561.59,0.00049589,120]
[320970811,1711725052606,-704.18,0.00049589,120]
[320970812,1711725052618,-500.0,0.00049589,120]
[320970813,1711725052628,-500.0,0.00049589,120]
[320970814,1711725052639,-816.71,0.00049589,120]
[320970815,1711725052649,-1923.68,0.00049589,120]
[320970816,1711725052660,-2964.94,0.00049589,120]
[320970817,1711725052670,-964.16,0.00049589,120]
[320970818,1711725052680,-500.0,0.00049589,120]
[320970819,1711725052690,-500.0,0.00049589,120]
[320970820,1711725052699,-549.02,0.00049589,120]
[320970821,1711725052710,-566.67,0.00049589,120]
[320970822,1711725052720,-500.0,0.00049589,120]
[320970823,1711725052730,-985.65,0.00049589,120]
[320970824,1711725052741,-500.0,0.00049589,120]
[320970825,1711725052751,-1183.52,0.00049589,120]
[320970826,1711725052761,-500.0,0.00049589,120]
[320970827,1711725052772,-579.89235018,0.00049589,120]
[320970828,1711725052783,-523.71,0.00049589,120]
[320970829,1711725052795,-500.0,0.00049589,120]
[320970830,1711725052805,-500.0,0.00049589,120]
[320970831,1711725052819,-1007.25,0.00049589,120]
[320970832,1711725052828,-3361.47,0.00049589,120]
[320970833,1711725052839,-500.0,0.00049589,120]
[320970834,1711725052850,-500.0,0.00049589,120]
[320970835,1711725052860,-500.0,0.00049589,120]
[320970836,1711725052870,-2654.75,0.00049589,120]
[320970837,1711725052879,-500.0,0.00049589,120]
[320970838,1711725052890,-500.0,0.00049589,120]
[320970839,1711725052899,-699.89,0.00049589,120]
[320970840,1711725052908,-824.05,0.00049589,120]
[320970841,1711725052917,-500.0,0.00049589,120]
[320970842,1711725052926,-500.0,0.00049589,120]
[320970843,1711725052937,-500.0,0.00049589,120]
[320970844,1711725052947,-540.59,0.00049589,120]
[320970845,1711725052956,-500.0,0.00049589,120]
[320970846,1711725052966,-500.0,0.00049589,120]
[320970847,1711725052977,-158.0,0.000496,7]
[320970848,1711725052986,-153.29621667,0.00049683,30]
[320970849,1711725052996,-156.7,0.000497,7]
[320970850,1711725053006,-159.16,0.0004971,120]
[320970851,1711725053015,-1224.53657376,0.00049763,2]
[320970852,1711725053024,-9076.19438483,0.00049763,2]
[320970853,1711725053033,-209.56666667,0.00049808,120]
[320970854,1711725053043,-500.0,0.00049862,120]
[320970855,1711725053053,-500.0,0.00049863,120]
[320970856,1711725053063,-500.0,0.00049863,120]
[320970857,1711725053072,-500.0,0.00049863,120]
[320970858,1711725053081,-500.0,0.00049863,120]
[320970859,1711725053090,-500.0,0.00049863,120]
[320970860,1711725053099,-238.16,0.00049863,120]
[320970861,1711725053109,-260.44,0.00049863,120]
[320970862,1711725053119,-500.0,0.00049863,120]
[320970863,1711725053129,-500.0,0.00049863,120]
[320970864,1711725053139,-500.0,0.00049863,120]
[320970865,1711725053148,-500.0,0.00049863,120]
[320970866,1711725053158,-568.31,0.00049863,120]
[320970867,1711725053167,-500.0,0.00049863,120]
[320970868,1711725053178,-500.0,0.00049863,120]
[320970869,1711725053188,-569.57,0.00049863,120]
[320970870,1711725053198,-500.0,0.00049863,120]
[320970871,1711725053207,-500.0,0.00049863,2]
[320970872,1711725053217,-439.83,0.00049863,120]
[320970873,1711725053226,-246.09,0.00049863,30]
[320970874,1711725053236,-339.79,0.00049863,120]
[320970875,1711725053246,-500.0,0.00049863,120]
[320970876,1711725053256,-500.0,0.00049863,120]
[320970877,1711725053265,-500.0,0.00049863,120]
[320970878,1711725053274,-237.49,0.00049863,120]
[320970879,1711725053284,-263.22,0.00049863,120]
[320970880,1711725053298,-500.0,0.00049863,120]
[320970881,1711725053308,-383.17,0.00049863,120]
[320970882,1711725053318,-433.17,0.00049863,120]
[320970883,1711725053329,-500.0,0.00049863,120]
[320970884,1711725053340,-300.84,0.00049863,120]
[320970885,1711725053350,-500.0,0.00049863,120]
[320970886,1711725053361,-500.0,0.00049863,120]
[320970887,1711725053371,-150.0,0.00049863,120]
[320970888,1711725053381,-500.0,0.00049863,120]
[320970889,1711725053391,-500.0,0.00049863,120]
[320970890,1711725053402,-500.0,0.00049863,120]
[320970891,1711725053413,-500.0,0.00049863,120]
[320970892,1711725053424,-500.0,0.00049863,120]
[320970893,1711725053433,-500.0,0.00049863,120]
[320970894,1711725053444,-500.0,0.00049863,120]
[320970895,1711725053455,-273.3,0.00049863,120]
[320970896,1711725053466,-500.0,0.00049863,120]
[320970897,1711725053477,-581.76,0.00049863,120]
[320970898,1711725053487,-500.0,0.00049863,120]
[320970899,1711725053499,-500.0,0.00049863,120]
[320970900,1711725053511,-500.0,0.00049863,120]
[320970901,1711725053521,-500.0,0.00049863,120]
[320970902,1711725053532,-500.0,0.00049863,120]
[320970903,1711725053546,-500.0,0.00049863,120]
[320970904,1711725053557,-500.0,0.00049863,120]
[320970905,1711725053567,-500.0,0.00049863,120]
[320970906,1711725053578,-500.0,0.00049863,120]
[320970907,1711725053589,-500.0,0.00049863,120]
[320970908,1711725053600,-500.0,0.00049863,120]
[320970909,1711725053611,-500.0,0.00049863,120]
[320970910,1711725053622,-500.0,0.00049863,120]
[320970911,1711725053632,-500.0,0.00049863,120]
[320970912,1711725053643,-500.0,0.00049863,120]
[320970913,1711725053653,-500.0,0.00049863,120]
[320970914,1711725053664,-500.0,0.00049863,120]
[320970915,1711725053675,-4432.67,0.00049863,120]
[320970916,1711725053685,-500.0,0.00049863,120]
[320970917,1711725053696,-500.0,0.00049863,120]
[320970918,1711725053708,-500.0,0.00049863,120]
[320970919,1711725053720,-500.0,0.00049863,120]
[320970920,1711725053732,-500.0,0.00049863,120]
[320970921,1711725053744,-1344.8,0.00049863,120]
[320970922,1711725053755,-500.0,0.00049863,120]
[320970923,1711725053766,-451.89178612,0.00049863,120]
[320970924,1711725053777,-500.0,0.00049863,120]
[320970925,1711725053788,-540.96,0.00049863,120]
[320970926,1711725053812,-4526.07,0.00049863,120]
[320970927,1711725053824,-3423.87,0.00049863,120]
[320970928,1711725053837,-500.0,0.00049863,120]
[320970929,1711725053849,-500.0,0.00049863,120]
[320970930,1711725053860,-500.0,0.00049863,120]
[320970931,1711725053870,-500.0,0.00049863,120]
[320970932,1711725053881,-500.0,0.00049863,120]
[320970933,1711725053891,-500.0,0.00049863,120]
[320970934,1711725053902,-500.0,0.00049863,120]
[320970935,1711725053912,-500.0,0.00049863,120]
[320970936,1711725053922,-500.0,0.00049863,120]
[320970937,1711725053933,-736.71,0.00049863,120]
[320970938,1711725053942,-500.0,0.00049863,120]
[320970939,1711725053952,-500.0,0.00049863,120]
[320970940,1711725053961,-500.0,0.00049863,120]
[320970941,1711725053970,-500.0,0.00049863,120]
[320970942,1711725053979,-500.0,0.00049863,120]
[320970943,1711725053988,-500.0,0.00049863,120]
[320970944,1711725053998,-784.08,0.00049863,21]
[320970945,1711725054007,-1932.64,0.00049863,120]
[320970946,1711725054017,-587.66,0.00049863,120]
[320970947,1711725054026,-616.86,0.00049863,120]
[320970948,1711725054035,-500.0,0.00049863,120]
[320970949,1711725054047,-500.0,0.00049863,120]
[320970950,1711725054056,-4065.91,0.00049863,120]
[320970951,1711725054065,-1193.78,0.00049863,120]
[320970952,1711725054075,-500.0,0.00049863,120]
[320970953,1711725054083,-500.0,0.00049863,120]
[320970954,1711725054093,-280.76,0.00049863,120]
[320970955,1711725054102,-500.0,0.00049863,120]
[320970956,1711725054111,-1940.59,0.00049863,120]
[320970957,1711725054120,-500.0,0.00049863,120]
[320970958,1711725054129,-500.0,0.00049863,120]
[320970959,1711725054138,-287.61,0.00049863,120]
[320970960,1711725054147,-500.0,0.00049863,120]
[320970961,1711725054156,-951.41,0.00049863,120]
[320970962,1711725054166,-500.0,0.00049863,120]
[320970963,1711725054175,-500.0,0.00049863,120]
[320970964,1711725054185,-500.0,0.00049863,120]
[320970965,1711725054194,-500.05,0.00049863,120]
[320970966,1711725054204,-853.25,0.00049863,120]
[320970967,1711725054213,-500.0,0.00049863,120]
[320970968,1711725054222,-500.0,0.00049863,120]
[320970969,1711725054231,-525.50735744,0.00049863,120]
[320970970,1711725054241,-570.44,0.00049863,120]
[320970971,1711725054250,-500.0,0.00049863,120]
[320970972,1711725054260,-500.0,0.00049863,120]
[320970973,1711725054270,-869.21,0.00049863,120]
[320970974,1711725054279,-500.0,0.00049863,120]
[320970975,1711725054289,-500.0,0.00049863,120]
[320970976,1711725054300,-500.0,0.00049863,120]
[320970977,1711725054309,-1369.55,0.00049863,120]
[320970978,1711725054318,-500.0,0.00049863,120]
[320970979,1711725054327,-686.24,0.00049863,120]
[320970980,1711725054337,-656.0,0.00049863,120]
[320970981,1711725054346,-500.0,0.00049863,120]
[320970982,1711725054355,-1965.79,0.00049863,120]
[320970983,1711725054364,-500.0,0.00049863,120]
[320970984,1711725054373,-1009.79,0.00049863,120]
[320970985,1711725054383,-500.0,0.00049863,120]
[320970986,1711725054392,-1502.83,0.00049863,120]
[320970987,1711725054402,-716.55,0.00049863,120]
[320970988,1711725054411,-951.9,0.00049863,120]
[320970989,1711725054421,-579.39,0.00049863,120]
[320970990,1711725054430,-500.0,0.00049863,120]
[320970991,1711725054440,-588.56,0.00049863,120]
[320970992,1711725054449,-500.0,0.00049863,120]
[320970993,1711725054459,-1875.29,0.00049863,120]
[320970994,1711725054468,-2456.85,0.00049863,120]
[320970995,1711725054478,-1392.05,0.00049863,120]
[320970996,1711725054487,-500.0,0.00049863,120]
[320970997,1711725054497,-500.0,0.00049863,120]
[320970998,1711725054507,-508.61,0.00049863,120]
[320970999,1711725054517,-161.84,0.00049863,120]
[320971000,1711725054526,-676.92,0.00049863,120]
[320971001,1711725054537,-1162.06,0.00049863,120]
[320971002,1711725054548,-500.0,0.00049863,120]
[320971003,1711725054557,-500.0,0.00049863,120]
[320971004,1711725054567,-530.42,0.00049863,120]
[320971005,1711725054577,-909.52,0.00049863,120]
[320971006,1711725054586,-2245.64,0.00049863,120]
[320971007,1711725054596,-500.0,0.00049863,120]
[320971008,1711725054606,-561.59,0.00049863,120]
[320971009,1711725054616,-704.18,0.00049863,120]
[320971010,1711725054626,-500.0,0.00049863,120]
[320971011,1711725054635,-816.71,0.00049863,120]
[320971012,1711725054644,-1923.68,0.00049863,120]
[320971013,1711725054654,-964.16,0.00049863,120]
[320971014,1711725054664,-2964.94,0.00049863,120]
[320971015,1711725054673,-500.0,0.00049863,120]
[320971016,1711725054683,-566.67,0.00049863,120]
[320971017,1711725054693,-549.02,0.00049863,120]
[320971018,1711725054702,-500.0,0.00049863,120]
[320971019,1711725054712,-985.65,0.00049863,120]
[320971020,1711725054722,-500.0,0.00049863,120]
[320971021,1711725054731,-1183.52,0.00049863,120]
[320971022,1711725054741,-500.0,0.00049863,120]
[320971023,1711725054750,-523.71,0.00049863,120]
[320971024,1711725054760,-500.0,0.00049863,120]
[320971025,1711725054769,-405.96,0.00049863,120]
[320971026,1711725054778,-1007.25,0.00049863,120]
[320971027,1711725054787,-3361.47,0.00049863,120]
[320971028,1711725054799,-500.0,0.00049863,120]
[320971029,1711725054808,-500.0,0.00049863,120]
[320971030,1711725054820,-500.0,0.00049863,120]
[320971031,1711725054830,-2654.75,0.00049863,120]
[320971032,1711725054840,-500.0,0.00049863,120]
[320971033,1711725054849,-500.0,0.00049863,120]
[320971034,1711725054860,-699.89,0.00049863,120]
[320971035,1711725054870,-824.05,0.00049863,120]
[320971036,1711725054880,-500.0,0.00049863,120]
[320971037,1711725054890,-500.0,0.00049863,120]
[320971038,1711725054901,-500.0,0.00049863,120]
[320971039,1711725054910,-540.59,0.00049863,120]
[320971040,1711725054919,-500.0,0.00049863,120]
[320971041,1711725054929,-500.0,0.00049863,120]
[320971042,1711725054938,-154.44633834,0.00049929,30]
[320971043,1711725054947,-999.999999,0.0005,2]
[320971044,1711725054957,-1865.04257258,0.0005,30]
[320971045,1711725054966,-1496.8272558,0.0005,5]
[320971046,1711725054976,-424896.6476237,0.0005,120]
[320971047,1711725054986,-217.10459111,0.0005,4]
[320971048,1711725054995,-233.58036097,0.0005,4]
[320971049,1711725055006,-264.76629189,0.0005,2]
[320971050,1711725055015,-29028.32219007,0.0005,120]
[320971051,1711725055025,-151.0,0.0005,120]
[320971052,1711725055035,-56286.0,0.0005,120]
[320971053,1711725055046,-2846.28610093,0.000501,120]
[320971054,1711725055056,-17209.25,0.0005011,2]
[320971055,1711725055065,-17209.25,0.0005012,2]
[320971056,1711725055075,-17209.26,0.0005013,2]
[320971057,1711725055085,-188.72,0.00050136,120]
[320971058,1711725055095,-500.0,0.00050136,120]
[320971059,1711725055105,-350.66,0.00050136,120]
[320971060,1711725055114,-500.0,0.00050136,120]
[320971061,1711725055124,-500.0,0.00050136,120]
[320971062,1711725055133,-500.0,0.00050136,120]
[320971063,1711725055143,-387.18373559,0.00050136,120]
[320971064,1711725055153,-180.86,0.00050136,120]
[320971065,1711725055163,-500.0,0.00050136,120]
[320971066,1711725055172,-500.0,0.00050136,120]
[320971067,1711725055182,-500.0,0.00050136,2]
[320971068,1711725055191,-248.32,0.00050136,120]
[320971069,1711725055200,-500.0,0.00050136,120]
[320971070,1711725055210,-500.0,0.00050136,120]
[320971071,1711725055219,-500.0,0.00050136,120]
[320971072,1711725055230,-500.0,0.00050136,120]
[320971073,1711725055239,-446.05,0.00050136,120]
[320971074,1711725055248,-500.0,0.00050136,120]
[320971075,1711725055258,-150.0,0.00050136,120]
[320971076,1711725055267,-500.0,0.00050136,120]
[320971077,1711725055277,-500.0,0.00050136,120]
[320971078,1711725055286,-481.3887126,0.00050136,120]
[320971079,1711725055299,-500.0,0.00050136,120]
[320971080,1711725055308,-500.0,0.00050136,120]
[320971081,1711725055318,-500.0,0.00050136,120]
[320971082,1711725055327,-500.0,0.00050136,120]
[320971083,1711725055337,-500.0,0.00050136,120]
[320971084,1711725055346,-581.76,0.00050136,120]
[320971085,1711725055356,-500.0,0.00050136,120]
[320971086,1711725055365,-500.0,0.00050136,120]
[320971087,1711725055374,-500.0,0.00050136,120]
[320971088,1711725055384,-500.0,0.00050136,120]
[320971089,1711725055393,-500.0,0.00050136,120]
[320971090,1711725055403,-500.0,0.00050136,120]
[320971091,1711725055412,-500.0,0.00050136,120]
[320971092,1711725055421,-500.0,0.00050136,120]
[320971093,1711725055431,-638.35970065,0.00050136,120]
[320971094,1711725055440,-500.0,0.00050136,120]
[320971095,1711725055450,-500.0,0.00050136,120]
[320971096,1711725055460,-500.0,0.00050136,120]
[320971097,1711725055469,-500.0,0.00050136,120]
[320971098,1711725055478,-500.0,0.00050136,120]
[320971099,1711725055488,-500.0,0.00050136,120]
[320971100,1711725055497,-500.0,0.00050136,120]
[320971101,1711725055507,-500.0,0.00050136,120]
[320971102,1711725055517,-4432.67,0.00050136,120]
[320971103,1711725055526,-500.0,0.00050136,120]
[320971104,1711725055535,-500.0,0.00050136,120]
[320971105,1711725055546,-500.0,0.00050136,120]
[320971106,1711725055556,-500.0,0.00050136,120]
[320971107,1711725055566,-500.0,0.00050136,120]
[320971108,1711725055576,-1344.8,0.00050136,120]
[320971109,1711725055585,-500.0,0.00050136,120]
[320971110,1711725055595,-500.0,0.00050136,120]
[320971111,1711725055744,-540.96,0.00050136,120]
[320971112,1711725055755,-4526.07,0.00050136,120]
[320971113,1711725055765,-3423.87,0.00050136,120]
[320971114,1711725055774,-500.0,0.00050136,120]
[320971115,1711725055783,-500.0,0.00050136,120]
[320971116,1711725055793,-500.0,0.00050136,120]
[320971117,1711725055807,-500.0,0.00050136,120]
[320971118,1711725055816,-500.0,0.00050136,120]
[320971119,1711725055825,-637.75,0.00050136,120]
[320971120,1711725055835,-500.0,0.00050136,120]
[320971121,1711725055846,-500.0,0.00050136,120]
[320971122,1711725055855,-500.0,0.00050136,120]
[320971123,1711725055864,-736.71,0.00050136,120]
[320971124,1711725055874,-500.0,0.00050136,120]
[320971125,1711725055884,-500.0,0.00050136,120]
[320971126,1711725055893,-500.0,0.00050136,120]
[320971127,1711725055901,-500.0,0.00050136,120]
[320971128,1711725055911,-500.0,0.00050136,120]
[320971129,1711725055921,-500.0,0.00050136,120]
[320971130,1711725055930,-784.08,0.00050136,21]
[320971131,1711725055940,-1932.64,0.00050136,120]
[320971132,1711725055950,-587.66,0.00050136,120]
[320971133,1711725055959,-616.86,0.00050136,120]
[320971134,1711725055968,-500.0,0.00050136,120]
[320971135,1711725055979,-500.0,0.00050136,120]
[320971136,1711725055988,-4065.91,0.00050136,120]
[320971137,1711725055998,-1193.78,0.00050136,120]
[320971138,1711725056007,-500.0,0.00050136,120]
[320971139,1711725056017,-500.0,0.00050136,120]
[320971140,1711725056026,-500.0,0.00050136,120]
[320971141,1711725056037,-1940.59,0.00050136,120]
[320971142,1711725056049,-500.0,0.00050136,120]
[320971143,1711725056059,-159.03,0.00050136,120]
[320971144,1711725056069,-1000.0,0.00050136,64]
[320971145,1711725056079,-500.0,0.00050136,120]
[320971146,1711725056089,-951.41,0.00050136,120]
[320971147,1711725056099,-500.0,0.00050136,120]
[320971148,1711725056109,-500.0,0.00050136,120]
[320971149,1711725056119,-500.0,0.00050136,120]
[320971150,1711725056129,-500.05,0.00050136,120]
[320971151,1711725056138,-853.25,0.00050136,120]
[320971153,1711725056148,-500.0,0.00050136,120]
[320971154,1711725056158,-500.0,0.00050136,120]
[320971155,1711725056167,-570.44,0.00050136,120]
[320971156,1711725056177,-500.0,0.00050136,120]
[320971157,1711725056187,-500.0,0.00050136,120]
[320971158,1711725056196,-869.21,0.00050136,120]
[320971159,1711725056205,-500.0,0.00050136,120]
[320971160,1711725056215,-500.0,0.00050136,120]
[320971161,1711725056225,-500.0,0.00050136,120]
[320971162,1711725056236,-1369.55,0.00050136,120]
[320971163,1711725056246,-500.0,0.00050136,120]
[320971164,1711725056256,-686.24,0.00050136,120]
[320971165,1711725056266,-656.0,0.00050136,120]
[320971166,1711725056275,-287.89561068,0.00050136,120]
[320971167,1711725056286,-1965.79,0.00050136,120]
[320971168,1711725056297,-500.0,0.00050136,120]
[320971169,1711725056307,-1009.79,0.00050136,120]
[320971170,1711725056317,-500.0,0.00050136,120]
[320971171,1711725056328,-1502.83,0.00050136,120]
[320971172,1711725056338,-716.55,0.00050136,120]
[320971173,1711725056349,-951.9,0.00050136,120]
[320971174,1711725056358,-579.39,0.00050136,120]
[320971175,1711725056367,-500.0,0.00050136,120]
[320971176,1711725056377,-588.56,0.00050136,120]
[320971177,1711725056387,-480.93289188,0.00050136,120]
[320971178,1711725056398,-1875.29,0.00050136,120]
[320971179,1711725056407,-2456.85,0.00050136,120]
[320971180,1711725056417,-1392.05,0.00050136,120]
[320971181,1711725056426,-500.0,0.00050136,120]
[320971182,1711725056435,-500.0,0.00050136,120]
[320971183,1711725056444,-508.61,0.00050136,120]
[320971184,1711725056454,-676.92,0.00050136,120]
[320971185,1711725056464,-1162.06,0.00050136,120]
[320971186,1711725056473,-500.0,0.00050136,120]
[320971187,1711725056482,-500.0,0.00050136,120]
[320971188,1711725056492,-530.42,0.00050136,120]
[320971189,1711725056502,-909.52,0.00050136,120]
[320971190,1711725056511,-2245.64,0.00050136,120]
[320971191,1711725056521,-500.0,0.00050136,120]
[320971192,1711725056530,-561.59,0.00050136,120]
[320971193,1711725056539,-704.18,0.00050136,120]
[320971194,1711725056553,-500.0,0.00050136,120]
[320971195,1711725056562,-1923.68,0.00050136,120]
[320971196,1711725056571,-816.71,0.00050136,120]
[320971197,1711725056582,-964.16,0.00050136,120]
[320971198,1711725056591,-2964.94,0.00050136,120]
[320971199,1711725056600,-500.0,0.00050136,120]
[320971200,1711725056609,-549.02,0.00050136,120]
[320971201,1711725056619,-566.67,0.00050136,120]
[320971202,1711725056629,-500.0,0.00050136,120]
[320971203,1711725056638,-985.65,0.00050136,120]
[320971204,1711725056647,-500.0,0.00050136,120]
[320971205,1711725056656,-1183.52,0.00050136,120]
[320971206,1711725056665,-500.0,0.00050136,120]
[320971207,1711725056675,-523.71,0.00050136,120]
[320971208,1711725056685,-500.0,0.00050136,120]
[320971209,1711725056694,-1007.25,0.00050136,120]
[320971210,1711725056704,-3361.47,0.00050136,120]
[320971211,1711725056713,-500.0,0.00050136,120]
[320971212,1711725056722,-500.0,0.00050136,120]
[320971213,1711725056732,-2654.75,0.00050136,120]
[320971214,1711725056741,-500.0,0.00050136,120]
[320971215,1711725056751,-500.0,0.00050136,120]
[320971216,1711725056760,-699.89,0.00050136,120]
[320971217,1711725056770,-824.05,0.00050136,120]
[320971218,1711725056779,-500.0,0.00050136,120]
[320971219,1711725056788,-500.0,0.00050136,120]
[320971220,1711725056801,-500.0,0.00050136,120]
[320971221,1711725056811,-540.59,0.00050136,120]
[320971222,1711725056823,-500.0,0.00050136,120]
[320971223,1711725056832,-500.0,0.00050136,120]
[320971224,1711725056841,-17209.27,0.0005014,2]
[320971225,1711725056851,-230.18,0.000502,7]
[320971226,1711725056862,-153.26008282,0.00050242,26]
[320971227,1711725056872,-500.0,0.0005041,120]
[320971228,1711725056881,-500.0,0.0005041,120]
[320971229,1711725056892,-580.28,0.0005041,120]
[320971230,1711725056903,-500.0,0.0005041,120]
[320971231,1711725056913,-500.0,0.0005041,120]
[320971232,1711725056923,-500.0,0.0005041,120]
[320971233,1711725056933,-500.0,0.0005041,2]
[320971234,1711725056943,-271.78,0.0005041,120]
[320971235,1711725056953,-500.0,0.0005041,120]
[320971236,1711725056962,-500.0,0.0005041,120]
[320971237,1711725056972,-434.32,0.0005041,120]
[320971238,1711725056981,-500.0,0.0005041,120]
[320971239,1711725056991,-175.36,0.0005041,120]
[320971240,1711725057000,-500.0,0.0005041,120]
[320971241,1711725057009,-399.82,0.0005041,120]
[320971242,1711725057019,-500.0,0.0005041,120]
[320971243,1711725057029,-561.26,0.0005041,120]
[320971244,1711725057039,-500.0,0.0005041,120]
[320971245,1711725057051,-500.0,0.0005041,120]
[320971246,1711725057062,-500.0,0.0005041,120]
[320971247,1711725057072,-581.76,0.0005041,120]
[320971248,1711725057082,-500.0,0.0005041,120]
[320971249,1711725057092,-500.0,0.0005041,120]
[320971250,1711725057102,-500.0,0.0005041,120]
[320971251,1711725057111,-500.0,0.0005041,120]
[320971252,1711725057121,-500.0,0.0005041,120]
[320971253,1711725057131,-500.0,0.0005041,120]
[320971254,1711725057140,-500.0,0.0005041,120]
[320971255,1711725057150,-500.0,0.0005041,120]
[320971256,1711725057160,-500.0,0.0005041,120]
[320971257,1711725057169,-500.0,0.0005041,120]
[320971258,1711725057179,-500.0,0.0005041,120]
[320971259,1711725057189,-500.0,0.0005041,120]
[320971260,1711725057199,-500.0,0.0005041,120]
[320971261,1711725057209,-500.0,0.0005041,120]
[320971262,1711725057218,-500.0,0.0005041,120]
[320971263,1711725057228,-500.0,0.0005041,120]
[320971264,1711725057238,-4432.67,0.0005041,120]
[320971265,1711725057247,-500.0,0.0005041,120]
[320971266,1711725057257,-500.0,0.0005041,120]
[320971267,1711725057266,-536.28,0.0005041,120]
[320971268,1711725057276,-500.0,0.0005041,120]